Cogmind - Beta 15 @@@ ROGUE MODE // 2025.07.30 @ 23:06:07 Player: SnailSD Result: Destroyed by S-27 Virus with Autogun Performance ------------- Evolutions (4) 2000 Regions Visited (7) 1400 Robots Destroyed (33) 165 Value Destroyed (779) 779 Prototype IDs (2) 40 Alien Tech Used (0) 0 Bonus (0) 0 TOTAL SCORE: 4384 Bonus ------- None Cogmind --------- Core Integrity 0/850 Matter 295/300 Energy 99/100 System Corruption 0% Temperature Cool (0) Movement Core (50) Location -6/Lower Caves Parts ------- > --- POWER (2) -------- (None) > --- PROPULSION (3) --- (None) > --- UTILITY (6) ------ (None) > --- WEAPON (4) ------- (None) > --- INVENTORY (5) ---- Improved Deuterium Engine Heat Sink Small Storage Unit Shock Rifle Grenade Launcher Peak State ------------ > --- POWER ------------ Light Deuterium Engine > --- PROPULSION ------- Carbon-fiber Leg Carbon-fiber Leg Flexi-carbon Leg > --- UTILITY ---------- Large Storage Unit Advanced Terrain Scanner Hardlight Generator Dynamic Insulation System > --- WEAPON ----------- Force Rifle Assault Rifle Improved Assault Rifle Improved Assault Rifle > --- INVENTORY -------- Carbon-fiber Leg Carbon-fiber Leg Compact Wheel Heat Sink Small Storage Unit Small Storage Unit Heavy Ion Cannon Grenade Launcher Flail Katana [Rating: 42] Favorites ----------- Power Ion Engine Engine Ion Engine Power Core Light Nuclear Core Propulsion Light Treads Treads Light Treads Leg Carbon-fiber Leg Wheel Compact Wheel Flight Unit Nuclear Pulse Thruster Utility Small Storage Unit Device Hardlight Generator Storage Small Storage Unit Protection Hardened Medium Armor Plating Weapon Assault Rifle Energy Gun Small Laser Energy Cannon Heavy Ion Cannon Ballistic Gun Assault Rifle Impact Weapon Flail Build | -11 -10 -10 -9 -8 -7 -6 -6 ------- Run | Yrd Mat Min Mat Mat Fac Fac Low Slots Evolved 8 | . . . 2 2 2 2 . Power 1 | . . . . . . 1 . Propulsion 1 | . . . . 1 . . . Utility 4 | . . . . 1 2 1 . Weapon 2 | . . . 2 . . . . Parts Attached 35 | 6 . 1 6 10 2 8 2 Power 4 | 1 . . 1 . 1 1 . Engine 3 | 1 . . . . 1 1 . Core 1 | . . . 1 . . . . Reactor . | . . . . . . . . Propulsion 10 | 2 . . . 5 . 1 2 Treads 2 | 2 . . . . . . . Leg 4 | . . . . 3 . 1 . Wheel 2 | . . . . 2 . . . Hover . | . . . . . . . . Flight 2 | . . . . . . . 2 Utility 9 | 1 . 1 2 2 1 2 . Device 4 | . . 1 . 1 1 1 . Storage 2 | 1 . . . . . 1 . Processor . | . . . . . . . . Hackware . | . . . . . . . . Protection 3 | . . . 2 1 . . . Artifact . | . . . . . . . . Weapon 12 | 2 . . 3 3 . 4 . Energy Gun 3 | . . . 1 . . 2 . Energy Cannon 1 | . . . . . . 1 . Ballistic Gun 7 | 2 . . 2 3 . . . Ballistic Cannon . | . . . . . . . . Launcher . | . . . . . . . . Special Weapon . | . . . . . . . . Impact Weapon 1 | . . . . . . 1 . Slashing Weapon . | . . . . . . . . Piercing Weapon . | . . . . . . . . Special Melee Weapon . | . . . . . . . . Unidentified Prototypes 2 | . . . . 1 . 1 . Parts Lost 14 | . . . 3 1 2 6 2 Power 2 | . . . . 1 . 1 . Propulsion 4 | . . . 1 . . 1 2 Utility 3 | . . . 1 . 1 1 . Weapon 5 | . . . 1 . 1 3 . Highest Loss Streak 6 | . . . 2 1 2 6 2 To Critical Strikes . | . . . . . . . . Average Backups 7 | 7 8 8 7 7 7 9 5 Power . | . 1 1 1 1 . . 1 Propulsion 3 | 4 4 4 2 1 2 2 . Utility 1 | . 1 1 1 2 2 2 2 Weapon 1 | . 1 1 1 3 3 3 2 Tool/Special . | . . . . . . . . Unused Backups 11 | . 1 . 3 1 1 3 2 Power 1 | . . . . 1 . . . Propulsion 4 | . 1 . 2 . . 1 . Utility 1 | . . . . . . 1 . Weapon 4 | . . . . . 1 1 2 Tool/Special 1 | . . . 1 . . . . Average Slot Usage (%) 81 | . 85 93 91 94 88 69 . Engine 5 | . 14 14 5 . 7 6 . Core 2 | . . . 5 6 . . . Treads 8 | . 28 28 16 . . . . Leg 11 | . . . . 25 23 17 . Device 8 | . . 8 5 7 12 16 . Storage 8 | . 14 14 11 9 7 5 . Protection 4 | . . . 5 9 6 . . Energy Gun 6 | . . . 11 9 6 3 . Ballistic Gun 24 | . 28 28 30 26 23 18 . Peak Build Rating 42 | 6 6 7 10 28 32 42 6 Average Rating 12 | 5 6 6 9 22 30 35 1 On Entrance 10 | . 6 6 7 10 25 28 1 Naked Turns 130 | . . . . . . 19 111 Heaviest Build 51 | 14 14 15 18 30 34 51 . Greatest Support 50 | 40 40 40 40 45 45 50 6 Greatest Overweight (x) 2 | . . . . 1 . 2 . Average Overweight (x) . | . . . . . . . . Largest Inventory Capacity 15 | 8 8 8 8 8 8 15 5 Average Capacity 8 | 7 8 8 8 8 8 13 5 Most Carried 13 | 8 8 8 8 8 8 13 5 Average Carried 7 | 7 7 8 7 7 7 9 5 Final Capacity 8 | 8 8 8 8 8 8 5 5 Final Carried 8 | 8 8 8 8 8 8 5 5 Class Distribution -------------------- 59% | Mutant 32% | Tank 7% | Gunner Dominant Class ---------------- Mutant | -10/Materials Mutant | -10/Mines Gunner | -9/Materials Tank | -8/Materials Tank | -7/Factory Tank | -6/Factory Mutant | -6/Lower Caves Resources | -11 -10 -10 -9 -8 -7 -6 -6 ----------- Run | Yrd Mat Min Mat Mat Fac Fac Low Matter Collected 1157 | 278 . 96 278 166 175 135 29 Remotely . | . . . . . . . . Salvage Created 1300 | 53 . 101 446 166 282 252 . Parts 75 | 2 . 3 34 10 13 13 . Haulers Intercepted 1 | . . . . 1 . . . Recyclers Shooed 2 | . . . 1 . 1 . . Parts Field Recycled . | . . . . . . . . Retrieved Matter . | . . . . . . . . Parts Self-Destructed . | . . . . . . . . Prevented . | . . . . . . . . Kills | -11 -10 -10 -9 -8 -7 -6 -6 ------- Run | Yrd Mat Min Mat Mat Fac Fac Low Combat Hostiles Destroyed 24 | . . 2 14 4 2 2 . Guns 24 | . . 2 14 4 2 2 . Classes Destroyed 10 | 1 . 1 5 2 1 . . Worker 2 | . . . 1 1 . . . Builder 1 | . . . 1 . . . . Hauler 1 | . . . . 1 . . . Recycler 4 | 1 . . . . 2 1 . Watcher 1 | . . . . 1 . . . Swarmer 11 | . . . 7 4 . . . Grunt 8 | . . 2 5 . . 1 . Duelist 1 | . . . 1 . . . . Sentry 2 | . . . 1 . 1 . . Programmer 2 | . . . . . 1 1 . Best Kill Streak 7 | 1 . 2 7 6 2 2 . Combat Bots Only 7 | . . 2 7 4 1 1 . Max Kills in Single Turn 2 | 1 . 1 2 2 1 1 . Gunslinging 1 | . . . 1 . . . . Exploded . | . . . . . . . . Melee . | . . . . . . . . Uniques/NPCs Destroyed . | . . . . . . . . Combat | -11 -10 -10 -9 -8 -7 -6 -6 -------- Run | Yrd Mat Min Mat Mat Fac Fac Low Hostile Shots Fired 313 | . . 44 46 32 42 52 97 Missed 119 | . . 16 14 6 16 28 39 Hits 194 | . . 28 32 26 26 24 58 Melee 7 | . . . 7 . . . . Projectile 187 | . . 28 25 26 26 24 58 AOE 1 | . . . . . . 1 . Critical Strikes 7 | . . . 3 . 2 2 . Actively Blocked 1 | . . . 1 . . . . Damage Taken 2852 | . . 364 510 248 240 651 839 Core 1071 | . . 78 97 16 15 96 769 Absorbed by Shields . | . . . . . . . . Redirected to Shielding 60 | . . . 60 . . . . Core Remaining (%) 87 | 100 . 68 75 97 97 . . Volleys Fired 73 | 3 . 16 25 12 9 8 . Largest 4 | 2 . 2 4 4 4 4 . Hottest 146 | 40 . 40 100 106 106 146 . Shots Fired 251 | 6 . 32 100 48 35 30 . Gun 251 | 6 . 32 100 48 35 30 . Cannon . | . . . . . . . . Launcher . | . . . . . . . . Special . | . . . . . . . . Kinetic 199 | 6 . 32 75 36 27 23 . Thermal 52 | . . . 25 12 8 7 . Explosive . | . . . . . . . . Electromagnetic . | . . . . . . . . Robot Hit Streak 13 | 4 . 6 13 4 6 5 . Robot Miss Streak 4 | 1 . 4 3 4 1 2 . Penetration Max . | . . . . . . . . Secondary Targets 10 | . . 1 6 3 . . . Max Gunslinging Chain 1 | . . 1 1 1 . . . Shots Hit Robots 146 | 5 . 16 58 19 28 20 . Core Hits 65 | 2 . 5 26 10 11 11 . Critical Kills . | . . . . . . . . Critical Parts Destroyed 1 | . . . 1 . . . . Critical Strikes 1 | . . . 1 . . . . Destroy 1 | . . . 1 . . . . Melee Attacks 3 | . . . . . . 3 . Impact 3 | . . . . . . 3 . Slashing . | . . . . . . . . Piercing . | . . . . . . . . Sneak Attacks . | . . . . . . . . Combat Hostiles . | . . . . . . . . Follow-up Attacks . | . . . . . . . . Damage Inflicted 2031 | 63 . 217 724 269 396 362 . Guns 2031 | 63 . 217 724 269 396 362 . Cannons . | . . . . . . . . Explosions . | . . . . . . . . Melee . | . . . . . . . . Ramming . | . . . . . . . . Kinetic 1618 | 63 . 217 541 227 337 233 . Thermal 413 | . . . 183 42 59 129 . Explosive . | . . . . . . . . Electromagnetic . | . . . . . . . . Impact . | . . . . . . . . Slashing . | . . . . . . . . Piercing . | . . . . . . . . Highest Corruption . | . . . . . . . . Average Corruption . | . . . . . . . . Corruption Purged . | . . . . . . . . Corruption Blocked . | . . . . . . . . Overload Shots . | . . . . . . . . Overflow Damage . | . . . . . . . . Projectiles . | . . . . . . . . Explosions . | . . . . . . . . Melee . | . . . . . . . . Knockbacks . | . . . . . . . . Impact . | . . . . . . . . Kinetic . | . . . . . . . . Secondary . | . . . . . . . . Self-Inflicted Damage . | . . . . . . . . Shots . | . . . . . . . . Rammed . | . . . . . . . . Targets Rammed . | . . . . . . . . Kicked . | . . . . . . . . Crushed . | . . . . . . . . Highest Temperature 414 | . . 10 189 414 128 410 . Average Temperature 94 | . . 4 56 171 55 116 . Received Heat Transfer 817 | . . 183 120 54 54 406 . Effects 2 | . . . . 2 . . . Short Circuit 1 | . . . . 1 . . . Damage (minor) 1 | . . . . 1 . . . Siege Activations . | . . . . . . . . Martial Activations . | . . . . . . . . Shielding Activations . | . . . . . . . . Robots Disrupted . | . . . . . . . . Combat Hostiles . | . . . . . . . . Robots Corrupted . | . . . . . . . . Combat Hostiles . | . . . . . . . . Parts Fried . | . . . . . . . . Impact Corruptions . | . . . . . . . . Robots Melted . | . . . . . . . . Combat Hostiles . | . . . . . . . . Parts Melted . | . . . . . . . . Heat Transferred 810 | . . . 400 100 125 185 . Parts Sabotaged . | . . . . . . . . Parts Stolen . | . . . . . . . . Parts Stripped . | . . . . . . . . Power Chain Reactions . | . . . . . . . . Alert | -11 -10 -10 -9 -8 -7 -6 -6 ------- Run | Yrd Mat Min Mat Mat Fac Fac Low Maximum Alert Level 1 | . . . 1 . . . . Low Security (%) 97 | 100 100 100 78 100 100 100 . Level 1 2 | . . . 21 . . . . Level 2 . | . . . . . . . . Level 3 . | . . . . . . . . Level 4 . | . . . . . . . . Level 5 . | . . . . . . . . High Security . | . . . . . . . . Max Security . | . . . . . . . . Peak Influence 220 | 5 2 40 220 95 30 40 . Initial 81 | . . . 5 81 25 9 . Average 20 | . . 12 105 35 9 7 . Influence Increases 732 | 5 2 65 355 124 70 96 15 Destroy 0b10 Robot/C 480 | . . 40 280 80 40 40 . Destroy 0b10 Robot/NC 45 | 5 . . 10 15 10 5 . Destroy Leader 114 | . . 10 50 14 20 20 . Successful Hack 2 | . 2 . . . . . . Disable Machine 15 | . . . . 15 . . . Destroy Structure 1 | . . . . . . 1 . Lose Combat Pursuer 75 | . . 15 15 . . 30 15 Influence Decreases 727 | 5 2 50 177 260 107 116 10 Entered New Map 165 | . . . 10 112 32 11 . Time Decay 510 | 5 2 50 137 146 75 85 10 Lost Part 52 | . . . 30 2 . 20 . Squads Dispatched 3 | . . . . 1 1 1 . Investigation . | . . . . . . . . Extermination 2 | . . . . . 1 1 . Reinforcement 1 | . . . . 1 . . . Assault . | . . . . . . . . Garrison . | . . . . . . . . Intercept . | . . . . . . . . Searches Triggered . | . . . . . . . . Construction Impeded . | . . . . . . . . Haulers Reinforced . | . . . . . . . . Active Scanning Responses . | . . . . . . . . Cargo Convoy Interrupts . | . . . . . . . . Stealth | -11 -10 -10 -9 -8 -7 -6 -6 --------- Run | Yrd Mat Min Mat Mat Fac Fac Low Distress Signals 2 | . . . . 2 . . . Communications Jammed . | . . . . . . . . Distress Signals . | . . . . . . . . Times Spotted 49 | . . 5 16 12 3 5 8 Peak Tracking Total 7 | . . 3 4 6 2 3 7 Tactical Retreats 4 | . . 1 1 . . 1 1 Traps | -11 -10 -10 -9 -8 -7 -6 -6 ------- Run | Yrd Mat Min Mat Mat Fac Fac Low Traps Triggered 3 | . . . . 2 . 1 . Indirectly . | . . . . . . . . Trap Hack Attempts . | . . . . . . . . Triggered . | . . . . . . . . Disarmed . | . . . . . . . . Reprogrammed . | . . . . . . . . Reused . | . . . . . . . . Traps Extracted . | . . . . . . . . Installed . | . . . . . . . . Triggered . | . . . . . . . . Machines | -11 -10 -10 -9 -8 -7 -6 -6 ---------- Run | Yrd Mat Min Mat Mat Fac Fac Low Machines Disabled 1 | . . . . 1 . . . Max in Single Turn 1 | . . . . 1 . . . Machines Repaired . | . . . . . . . . Machines Dismantled . | . . . . . . . . Machines Sabotaged . | . . . . . . . . Overloaded Fab Kills . | . . . . . . . . Hacking | -11 -10 -10 -9 -8 -7 -6 -6 --------- Run | Yrd Mat Min Mat Mat Fac Fac Low Machines Accessed 4 | . 1 . 1 . 1 1 . Terminals 2 | . 1 . . . . 1 . Fabricators . | . . . . . . . . Repair Stations . | . . . . . . . . Recycling Units 2 | . . . 1 . 1 . . Scanalyzers . | . . . . . . . . Garrison Access . | . . . . . . . . Total Hacks 11 | . 6 . 1 . 1 3 . Successful 5 | . 3 . 1 . . 1 . Failed 6 | . 3 . . . 1 2 . Catastrophic . | . . . . . . . . Database Lockouts . | . . . . . . . . Manual . | . . . . . . . . Terminals 9 | . 6 . . . . 3 . Fabricators . | . . . . . . . . Repair Stations . | . . . . . . . . Recycling Units 2 | . . . 1 . 1 . . Scanalyzers . | . . . . . . . . Garrison Access . | . . . . . . . . Terminal Hacks 4 | . 3 . . . . 1 . Record 2 | . 2 . . . . . . Alert Level 2 | . 1 . . . . 1 . Fabricator Hacks . | . . . . . . . . Repair Station Hacks . | . . . . . . . . Recycling Unit Hacks 1 | . . . 1 . . . . Retrieve Components 1 | . . . 1 . . . . Scanalyzer . | . . . . . . . . Garrison Access Hacks . | . . . . . . . . Unauthorized Hacks . | . . . . . . . . Terminals . | . . . . . . . . Fabricators . | . . . . . . . . Repair Stations . | . . . . . . . . Recycling Units . | . . . . . . . . Scanalyzers . | . . . . . . . . Garrison Access . | . . . . . . . . Data Cores Recovered . | . . . . . . . . Used . | . . . . . . . . Hacking Detections 2 | . 1 . . . . 1 . Full Trace Events 1 | . 1 . . . . . . Feedback Events . | . . . . . . . . Feedback Blocked . | . . . . . . . . Robot Schematics Acquired . | . . . . . . . . Robots Built . | . . . . . . . . Authchips . | . . . . . . . . Time . | . . . . . . . . Total Robot Build Rating . | . . . . . . . . Part Schematics Acquired . | . . . . . . . . Parts Built . | . . . . . . . . Authchips . | . . . . . . . . Time . | . . . . . . . . Total Part Build Rating . | . . . . . . . . Parts Repaired . | . . . . . . . . Time . | . . . . . . . . Parts Recycled . | . . . . . . . . Recycled Matter . | . . . . . . . . Retrieved Matter . | . . . . . . . . Retrieved Components . | . . . . . . . . Parts Scanalyzed . | . . . . . . . . Part Schematics Acquired . | . . . . . . . . Parts Damaged . | . . . . . . . . Bothacking | -11 -10 -10 -9 -8 -7 -6 -6 ------------ Run | Yrd Mat Min Mat Mat Fac Fac Low Used RIF Installer . | . . . . . . . . Robots Hacked . | . . . . . . . . Non-combat . | . . . . . . . . Combat . | . . . . . . . . Robot Hacks Applied . | . . . . . . . . Relay Couplers Released . | . . . . . . . . Fabnet Peak Effective % . | . . . . . . . . Robots Rewired . | . . . . . . . . Allies Hacked . | . . . . . . . . Hacks Repelled . | . . . . . . . . Allies | -11 -10 -10 -9 -8 -7 -6 -6 -------- Run | Yrd Mat Min Mat Mat Fac Fac Low Total Allies . | . . . . . . . . Largest Group . | . . . . . . . . Highest-Rated Group . | . . . . . . . . Highest-Rated Ally . | . . . . . . . . Total Orders . | . . . . . . . . Ally Attacks . | . . . . . . . . Total Damage . | . . . . . . . . Kills . | . . . . . . . . Allies Corrupted . | . . . . . . . . Allies Melted . | . . . . . . . . Intel | -11 -10 -10 -9 -8 -7 -6 -6 ------- Run | Yrd Mat Min Mat Mat Fac Fac Low Active Infowar (turns) 36 | . . . . . . 36 . Terrain 36 | . . . . . . 36 . Robot Analysis Total . | . . . . . . . . Derelict Logs Recovered . | . . . . . . . . Drone Launches . | . . . . . . . . Drone Recoveries . | . . . . . . . . Exploration | -11 -10 -10 -9 -8 -7 -6 -6 ------------- Run | Yrd Mat Min Mat Mat Fac Fac Low Turns Passed 3676 | 1757 119 173 478 411 265 350 123 Spaces Moved 1573 | 252 74 78 236 282 189 218 244 Core 262 | 6 . . . . . 37 219 Treads 634 | 246 74 78 236 . . . . Legs 645 | . . . . 275 189 181 . Wheels 7 | . . . . 7 . . . Hover . | . . . . . . . . Flight 25 | . . . . . . . 25 Fastest Speed 40 | 50 160 160 160 100 120 50 40 Average Speed 125 | 157 160 160 160 119 120 123 48 Slowest Speed 260 | 160 160 160 160 190 120 260 50 Overloaded Moves . | . . . . . . . . Propulsion Burnouts . | . . . . . . . . Robots Hopped 1 | . . . . . . . 1 Potential Cave-ins . | . . . . . . . . Cave-ins Triggered . | . . . . . . . . Exploration Rate (%) 20 | 30 9 20 24 31 8 6 35 Regions Visited 7 Branch Regions 2 Pre-discovered Areas . | . . . . . . . . Known Exits Taken . | . . . . . . . . Unknown Exits Taken 7 | 1 1 1 1 1 1 1 . Scrap Searched 1 | . . . . . . . 1 Spaces Dug 1 | . . . . . . 1 . Terrain Destroyed 1 | . . . . . . 1 . Melee 1 | . . . . . . 1 . Projectile . | . . . . . . . . AOE . | . . . . . . . . Terrain Rammed . | . . . . . . . . Walls Destroyed . | . . . . . . . . Machines Disabled . | . . . . . . . . Actions | -11 -10 -10 -9 -8 -7 -6 -6 --------- Run | Yrd Mat Min Mat Mat Fac Fac Low Total 3090 | 1604 75 94 275 323 205 269 245 Wait 1369 | 1336 . . . 5 3 25 . Move 1564 | 251 73 77 235 281 188 217 242 Hop 1 | . . . . . . . 1 Pick Up 22 | 8 1 . 4 3 2 4 . Fast Attach 30 | 6 . 1 3 12 1 5 2 Attach 8 | . . . 2 2 1 3 . Detach 2 | . . . 1 . . 1 . Swap 4 | . . . 1 . . 3 . Drop 14 | . 1 . 4 8 1 . . Fire 73 | 3 . 16 25 12 9 8 . Melee 3 | . . . . . . 3 . Ram . | . . . . . . . . Kick . | . . . . . . . . Crush . | . . . . . . . . Escape Stasis . | . . . . . . . . Rewire . | . . . . . . . . Trap . | . . . . . . . . Miscellaneous . | . . . . . . . . Route ------- -11/Scrapyard -10/Materials -10/Mines -9/Materials -8/Materials -7/Factory -6/Factory -6/Lower Caves History --------- Turn | Location | Event 6 | -11/Scrapyard | Discovered new exit (range 15) 1592 | -11/Scrapyard | Assembled infested the area 1758 | -11/Scrapyard | Entered Materials 1759 | -10/Materials | Build established: Mutant 1779 | -10/Materials | Discovered new exit (range 15) 1877 | -10/Materials | Entered Mines 2036 | -10/Mines | Discovered new exit (range 9) 2050 | -10/Mines | Entered Materials 2050 | -9/Materials | Evolved 2 slots: Weapon x2 2296 | -9/Materials | Destroyed 7 combat bots 2504 | -9/Materials | Discovered new exit (range 16) 2528 | -9/Materials | Entered another Materials area 2528 | -8/Materials | Evolved 2 slots: Propulsion x1, Utility x1 2729 | -8/Materials | Build established: Tank 2902 | -8/Materials | Discovered new exit (range 3) 2939 | -8/Materials | Entered Factory 2939 | -7/Factory | Evolved 2 slots: Utility x2 3182 | -7/Factory | Discovered new exit (range 7) 3204 | -7/Factory | Entered another Factory area 3204 | -6/Factory | Evolved 2 slots: Power x1, Utility x1 3415 | -6/Factory | Spotted B-75 Beast 3535 | -6/Factory | Released all parts (7) 3549 | -6/Factory | Discovered new exit (range 11) 3554 | -6/Factory | Entered Lower Caves 3565 | -6/Lower Caves | Lost 6 parts (1p1n1u3w) 3650 | -6/Lower Caves | Core integrity fell below 50% 3666 | -6/Lower Caves | Core integrity fell below 20% 3677 | -6/Lower Caves | Destroyed by S-27 Virus with Autogun Last Messages --------------- 03535_ Released Lrg. Storage Unit. 03535_ Released Dynamic Insulation System. 03535_ Released Flexi-carbon Leg. 03535_ Released Imp. Assault Rifle. 03535_ Released Hvy. Ion Cannon. 03537_ Nuclear Reactor explodes. 03549_ EXIT=FOUND LOCATION=UNKNOWN GOAL=ESCAPE 03626_ E4-Q3J(k) breaks down the debris. 03634_ Searching scrap... 03634_ Found Nuclear Pulse Thruster. 03634_ Found Imp. Medium Armor Plating. 03634_ Found Adv. Sensor Array. 03634_ Found 58 Matter. 03635_ Acquired Nuclear Pulse Thruster. 03636_ Acquired 29 matter. 03637_ Nuclear Pulse Thruster destroyed. 03637_ Acquired Nuclear Pulse Thruster. 03647_ Nuclear Pulse Thruster destroyed. Map ----- +----------------------------------------------------+ | ?????????????????????????????????????????????????? | | ?????????????????????????????????????????????????? | | ?????????????????????????????????????????????????? | | ?????????????????????????????????????????????????? | | ?????????????????????????????????????????????????? | | ?????????????????????????????????????????????????? | | ?????????????????????????????????????????????????? | | ?????????????????????????????????????????????????? | | ?????????????????????????????????????????????????? | | ?????????????????????????????????????????????????? | | ?????????????????????????????????????????????????? | | ?????????????????????????????????????????????????? | | ????????????????????????????? ?????????????????? | | ????????????????????????????? #?????????????????? | | ????????????????????????????? #???? ????????????? | | ???????????????????????????? #????# ???????????? | | ???????????????????????????? #????# ?????????## | | ???????????????????????????? ##???# ##???????# | | ??????????????????????????? #???? #???????# | | ??????????????????????????? #?????# ##?????# | | ??????????????????????????? #??????# ???### | | ??????????????????????????# ??????### #?## | | ???????????????????????### #???????# # ?# | | ???????????????????????# ??????## # ## | | ???????????????????????# ????????# | | ???????????????????????# @#?????????# | | ???????????????###?????# #?????????# ### # ## | | ??????????????## ## ### #?????????## # ??### ### | | ?????????????## # ##??????????# ????# #?# | | ????????????## #####s #???####???# ##### #?? | | ???????????## ??## #??## #???# #?? | | ???????????# #??# #### ##??# %% #?? | | ???????????# #??# ## ####### #?? | | ????????????# ##?#s ## ### #?? | | ?????????????# ###ss #?? | | ????????????## s ##?? | | ????????????# ss ### #??? | | ????????????# ## ##?## ## ##?? | | ???????????## #####???## ### #?? | | ???????????# #####????????## #### ### | | ????????## ## #?######??#########?# | | ????????# ## ### ### #??????# ## | | ????????# ## #??##??## ####### | | ????????# #?## ## ### #? | | ????????## ### ### # | | ?????????# #?# ##### ##? | | ?????????## ## ##?# #???# ##?? | | ??????????## ## ##??# ##???# #??? | | ???????????###########???## ####????## ### #??? | | ??????????????????????????####????????####??###??? | +----------------------------------------------------+ Best States ------------- Heat Dissipation 38 Energy Generation 25 Energy Capacity 330 Matter Stores 300 Matter Capacity 300 Sight Range 16 Terrain Scan Range 20 Terrain Scan Density 10 EM Shielding 2 Armor Coverage 225 Core Shielding 20 Weapon Shielding 33 Evasion (%) 62 Recoil Reduction 2 Item Schematics ----------------- None Robot Schematics ------------------ None Fabricated ------------ Nothing Repaired ---------- Nothing Alien Tech Used ----------------- None Achievements -------------- Curiosity Killed The Cat Challenges ------------ None Game ------ Seed PersonalServoBlaster Manual? 0 Play Time 00:20:00 Cumulative 21.6 hours Start 2025.07.30 @ 22:46:08 End 2025.07.30 @ 23:06:07 Sessions 1 Manual Loads 0 Difficulty Rogue Special Mode None Game No. 31 Rogue 31 Adventurer 0 Explorer 0 Win Type - Total 0 Types 0/0/0/0/0/0/0/0/0/0 Lore% 31 Gallery% 27 Achievement% 26 Wizard Run 0 Options --------- Layout 1 ASCII 0 Keyboard 0 Movement Numpad Keybinds 0 Fullscreen 1 Font 24/Smallcaps Map View 50x35 Zoom Use 0% Tactical HUD 1 Map Filters NONE Filters NONE Steam 1 RUN: ec6d553f-0e35-415d-827d-c7bc46d8bb79